fUSD/lending_fUSD_20250510
["ID","MTS","AMOUNT","RATE_DAILY","PERIOD"]
[360568952,1746892292545,-400.0,0.00019542,2]
[360568953,1746892292555,-400.0,0.00019542,2]
[360568954,1746892292564,-849.19,0.00019542,2]
[360568955,1746892292574,-2463.03,0.00019542,2]
[360568956,1746892292583,-530.44,0.00019542,2]
[360568957,1746892292592,-1065.33,0.00019542,2]
[360568958,1746892292601,-400.0,0.00019542,2]
[360568959,1746892292612,-400.0,0.00019542,2]
[360568960,1746892292621,-503.34,0.00019542,2]
[360568961,1746892292630,-400.0,0.00019542,2]
[360568962,1746892292639,-400.0,0.00019542,2]
[360568963,1746892292648,-9350.73,0.00019542,2]
[360568964,1746892292658,-400.0,0.00019542,2]
[360568965,1746892292667,-400.0,0.00019542,2]
[360568966,1746892292676,-400.0,0.00019542,2]
[360568967,1746892292685,-616.19,0.00019542,2]
[360568968,1746892292695,-8275.0,0.00019542,2]
[360568969,1746892292705,-400.0,0.00019542,2]
[360568970,1746892292714,-424.69,0.00019542,2]
[360568971,1746892292724,-151.0,0.00019542,2]
[360568972,1746892292733,-835.15,0.00019542,2]
[360568973,1746892292743,-718.71,0.00019542,2]
[360568974,1746892292752,-400.0,0.00019542,2]
[360568975,1746892292762,-151.0,0.00019542,2]
[360568976,1746892292771,-441.9,0.00019542,2]
[360568977,1746892292781,-400.0,0.00019542,2]
[360568978,1746892292791,-643.18,0.00019542,2]
[360568979,1746892292806,-924.57,0.00019542,2]
[360568980,1746892292816,-1666.15,0.00019542,2]
[360568981,1746892292825,-655.2,0.00019542,2]
[360568982,1746892292835,-508.820771,0.00019542,2]
[360568983,1746892292844,-1231.0,0.00019542,2]
[360568984,1746892292854,-508.820771,0.00019542,2]
[360568985,1746892292863,-819.43,0.00019542,2]
[360568986,1746892292872,-400.0,0.00019542,2]
[360568987,1746892292882,-400.0,0.00019543,2]
[360568988,1746892292891,-400.0,0.00019543,2]
[360568989,1746892292900,-400.0,0.00019543,2]
[360568990,1746892292910,-400.0,0.00019543,2]
[360568991,1746892292919,-400.0,0.00019543,2]
[360568992,1746892292929,-400.0,0.00019543,2]
[360568993,1746892292938,-400.0,0.00019543,2]
[360568994,1746892292947,-400.0,0.00019543,2]
[360568995,1746892292956,-400.0,0.00019543,2]
[360568996,1746892292965,-479.78,0.00019543,2]
[360568997,1746892292975,-411.26,0.00019543,2]
[360568998,1746892292984,-400.0,0.00019543,2]
[360568999,1746892292993,-400.0,0.00019543,2]
[360569000,1746892293002,-400.0,0.00019543,2]
[360569001,1746892293011,-400.0,0.00019543,2]
[360569002,1746892293021,-400.0,0.00019543,2]
[360569003,1746892293030,-400.0,0.00019543,2]
[360569004,1746892293039,-400.0,0.00019543,2]
[360569005,1746892293052,-405.67,0.00019543,2]
[360569006,1746892293066,-400.0,0.00019543,2]
[360569007,1746892293076,-400.0,0.00019543,2]
[360569008,1746892293086,-400.0,0.00019543,2]
[360569009,1746892293095,-400.0,0.00019543,2]
[360569010,1746892293106,-446.86,0.00019543,2]
[360569011,1746892293116,-400.0,0.00019543,2]
[360569012,1746892293126,-300.0,0.00019543,2]
[360569013,1746892293136,-400.0,0.00019543,2]
[360569014,1746892293146,-400.0,0.00019543,2]
[360569015,1746892293155,-400.0,0.00019543,2]
[360569016,1746892293165,-345.92459618,0.00019543,2]
[360569017,1746892293174,-400.0,0.00019543,2]
[360569018,1746892293184,-281.23268523,0.00019543,2]
[360569019,1746892293193,-151.0,0.00019543,2]
[360569020,1746892293202,-151.0,0.00019543,2]
[360569021,1746892293211,-151.405898,0.00019543,2]
[360569022,1746892293221,-151.0,0.00019543,2]
[360569023,1746892293230,-10000.0,0.00019543,2]
[360569024,1746892293240,-10000.0,0.00019543,2]
[360569025,1746892293249,-10000.0,0.00019543,2]
[360569026,1746892293259,-194.360305,0.00019543,2]
[360569027,1746892293268,-1819.022076,0.00019543,2]
[360569028,1746892293277,-151.0,0.00019543,2]
[360569029,1746892293287,-220.53564,0.00019543,2]
[360569030,1746892293299,-220.53564,0.00019543,2]
[360569031,1746892293310,-151.0,0.00019543,2]
[360569032,1746892293319,-205.727068,0.00019543,2]
[360569033,1746892293329,-151.0,0.00019543,2]
[360569034,1746892293339,-151.0,0.00019543,2]
[360569035,1746892293348,-151.0,0.00019543,2]
[360569036,1746892293357,-679.0,0.00019564,2]
[360569037,1746892293368,-400.0,0.00019596,2]
[360569038,1746892293378,-319.12064695,0.00019597,2]
[360569039,1746892293387,-300.0,0.00019597,2]
[360569040,1746892293396,-456.8,0.00019597,2]
[360569041,1746892293405,-763.58,0.00019597,2]
[360569042,1746892293415,-686.91,0.00019597,2]
[360569043,1746892293425,-400.0,0.00019597,2]
[360569044,1746892293434,-658.5,0.00019597,2]
[360569045,1746892293443,-400.0,0.00019597,2]
[360569046,1746892293452,-400.0,0.00019597,2]
[360569047,1746892293461,-400.0,0.00019597,2]
[360569048,1746892293471,-914.0,0.00019597,2]
[360569049,1746892293480,-423.93,0.00019597,2]
[360569050,1746892293490,-507.15,0.00019597,2]
[360569051,1746892293499,-458.7,0.00019597,2]
[360569052,1746892293508,-400.0,0.00019597,2]
[360569053,1746892293518,-824.5,0.00019597,2]
[360569054,1746892293527,-400.0,0.00019597,2]
[360569055,1746892293536,-400.0,0.00019597,2]
[360569056,1746892293548,-400.0,0.00019597,2]
[360569057,1746892293557,-400.0,0.00019597,2]
[360569058,1746892293566,-453.09,0.00019597,2]
[360569059,1746892293575,-400.0,0.00019597,2]
[360569060,1746892293584,-400.0,0.00019597,2]
[360569061,1746892293594,-151.0,0.00019597,2]
[360569062,1746892293603,-151.0,0.00019597,2]
[360569063,1746892293612,-151.0,0.00019597,2]
[360569064,1746892293622,-400.0,0.00019597,2]
[360569065,1746892293631,-400.0,0.00019597,2]
[360569066,1746892293640,-788.6,0.00019597,2]
[360569067,1746892293651,-400.0,0.00019597,2]
[360569068,1746892293661,-400.0,0.00019597,2]
[360569069,1746892293671,-512.77,0.00019597,2]
[360569070,1746892293680,-414.14,0.00019597,2]
[360569071,1746892293690,-400.0,0.00019597,2]
[360569072,1746892293699,-878.18,0.00019597,2]
[360569073,1746892293709,-151.0,0.00019597,2]
[360569074,1746892293719,-505.48,0.00019597,2]
[360569075,1746892293729,-280.567521,0.00019597,2]
[360569076,1746892293739,-594.16,0.00019597,2]
[360569077,1746892293749,-406.49,0.00019597,2]
[360569078,1746892293759,-489.404296,0.00019597,2]
[360569079,1746892293769,-489.404296,0.00019597,2]
[360569080,1746892293779,-400.0,0.00019597,2]
[360569081,1746892293789,-400.0,0.00019597,2]
[360569082,1746892293802,-209.861144,0.00019597,2]
[360569083,1746892293811,-400.0,0.00019597,2]
[360569084,1746892293821,-209.861144,0.00019597,2]
[360569085,1746892293831,-419.11,0.00019597,2]
[360569086,1746892293841,-400.0,0.00019597,2]
[360569087,1746892293851,-400.0,0.00019597,2]
[360569088,1746892293860,-400.0,0.00019597,2]
[360569089,1746892293870,-400.0,0.00019597,2]
[360569090,1746892293879,-552.43,0.00019597,2]
[360569091,1746892293888,-684.12,0.00019597,2]
[360569092,1746892293898,-400.0,0.00019597,2]
[360569093,1746892293908,-400.0,0.00019597,2]
[360569094,1746892293917,-712.94,0.00019597,2]
[360569095,1746892293927,-330.10487445,0.00019597,2]
[360569096,1746892293936,-604.66,0.00019597,2]
[360569097,1746892293946,-400.0,0.00019597,2]
[360569098,1746892293955,-400.0,0.00019597,2]
[360569099,1746892293964,-739.89,0.00019597,2]
[360569100,1746892293973,-912.17,0.00019597,2]
[360569101,1746892293983,-586.16,0.00019597,2]
[360569102,1746892293992,-915.12,0.00019597,2]
[360569103,1746892294002,-2684.88,0.00019597,2]
[360569104,1746892294012,-400.0,0.00019597,2]
[360569105,1746892294022,-400.0,0.00019597,2]
[360569106,1746892294031,-400.0,0.00019597,2]
[360569107,1746892294041,-400.0,0.00019597,2]
[360569108,1746892294053,-400.0,0.00019597,2]
[360569109,1746892294067,-400.0,0.00019597,2]
[360569110,1746892294076,-1062.13,0.00019597,2]
[360569111,1746892294086,-460.77,0.00019597,2]
[360569112,1746892294096,-460.77,0.00019597,2]
[360569113,1746892294105,-460.77,0.00019597,2]
[360569114,1746892294115,-460.77,0.00019597,2]
[360569115,1746892294124,-460.77,0.00019597,2]
[360569116,1746892294135,-1124.82,0.00019597,2]
[360569117,1746892294146,-1073.13,0.00019597,2]
[360569118,1746892294156,-1865.71,0.00019597,2]
[360569119,1746892294165,-635.07,0.00019597,2]
[360569120,1746892294175,-400.0,0.00019597,2]
[360569121,1746892294184,-400.0,0.00019597,2]
[360569122,1746892294194,-400.0,0.00019597,2]
[360569123,1746892294203,-400.0,0.00019597,2]
[360569124,1746892294213,-566.81,0.00019597,2]
[360569125,1746892294223,-400.0,0.00019597,2]
[360569126,1746892294233,-1915.97,0.00019597,2]
[360569127,1746892294242,-699.66,0.00019597,2]
[360569128,1746892294251,-433.23,0.00019597,2]
[360569129,1746892294445,-433.23,0.00019597,2]
[360569130,1746892294455,-433.23,0.00019597,2]
[360569131,1746892294464,-433.23,0.00019597,2]
[360569132,1746892294473,-433.23,0.00019597,2]
[360569133,1746892294483,-400.0,0.00019597,2]
[360569134,1746892294492,-400.0,0.00019597,2]
[360569135,1746892294502,-400.0,0.00019597,2]
[360569136,1746892294512,-400.0,0.00019597,2]
[360569137,1746892294522,-400.0,0.00019597,2]
[360569138,1746892294531,-400.0,0.00019597,2]
[360569139,1746892294540,-342.365821,0.00019597,2]
[360569140,1746892294552,-650.57,0.00019597,2]
[360569141,1746892294561,-650.57,0.00019597,2]
[360569142,1746892294570,-650.57,0.00019597,2]
[360569143,1746892294581,-650.57,0.00019597,2]
[360569144,1746892294591,-650.57,0.00019597,2]
[360569145,1746892294601,-342.365821,0.00019597,2]
[360569146,1746892294611,-640.99,0.00019597,2]
[360569147,1746892294620,-790.83,0.00019597,2]
[360569148,1746892294631,-719.42864988,0.00019597,2]
[360569149,1746892295035,-41463.11135012,0.00019597,2]
[360569150,1746892295045,-400.0,0.00019597,2]
[360569151,1746892295057,-400.0,0.00019597,2]
[360569152,1746892295070,-400.0,0.00019597,2]
[360569153,1746892295080,-668.26,0.00019597,2]
[360569154,1746892295090,-2257.2,0.00019597,2]
[360569155,1746892295101,-401.18,0.00019597,2]
[360569156,1746892295112,-401.18,0.00019597,2]
[360569157,1746892295122,-400.0,0.00019597,2]
[360569158,1746892295133,-400.0,0.00019597,2]
[360569159,1746892295143,-400.0,0.00019597,2]
[360569160,1746892295153,-546.77,0.00019597,2]
[360569161,1746892295162,-1462.73,0.00019597,2]
[360569162,1746892295174,-1462.73,0.00019597,2]
[360569163,1746892295184,-400.0,0.00019597,2]
[360569164,1746892295194,-2649.83,0.00019597,2]
[360569165,1746892295204,-400.0,0.00019597,2]
[360569166,1746892295214,-400.0,0.00019597,2]
[360569167,1746892295224,-436.6,0.00019597,2]
[360569168,1746892295234,-436.6,0.00019597,2]
[360569169,1746892295244,-436.6,0.00019597,2]
[360569170,1746892295255,-436.6,0.00019597,2]
[360569171,1746892295265,-436.6,0.00019597,2]
[360569172,1746892295276,-877.12,0.00019597,2]
[360569173,1746892295285,-400.0,0.00019597,2]
[360569174,1746892295295,-1654.23,0.00019597,2]
[360569175,1746892295304,-1117.08,0.00019597,2]
[360569176,1746892295314,-1117.08,0.00019597,2]
[360569177,1746892295323,-1117.08,0.00019597,2]
[360569178,1746892295333,-1117.08,0.00019597,2]
[360569179,1746892295342,-1117.08,0.00019597,2]
[360569180,1746892295352,-220.33,0.00019597,2]
[360569181,1746892295362,-849.19,0.00019597,2]
[360569182,1746892295371,-530.44,0.00019597,2]
[360569183,1746892295381,-400.05,0.00019597,2]
[360569184,1746892295391,-511.6,0.00019597,2]
[360569185,1746892295401,-511.6,0.00019597,2]
[360569186,1746892295410,-400.0,0.00019597,2]
[360569187,1746892295419,-400.0,0.00019597,2]
[360569188,1746892295430,-400.0,0.00019597,2]
[360569189,1746892295439,-400.0,0.00019597,2]
[360569190,1746892295449,-400.0,0.00019597,2]
[360569191,1746892295459,-400.0,0.00019597,2]
[360569192,1746892295470,-789.63,0.00019597,2]
[360569193,1746892295481,-789.63,0.00019597,2]
[360569194,1746892295490,-789.63,0.00019597,2]
[360569195,1746892295501,-789.63,0.00019597,2]
[360569196,1746892295511,-789.63,0.00019597,2]
[360569197,1746892295520,-677.94,0.00019597,2]
[360569198,1746892295530,-677.94,0.00019597,2]
[360569199,1746892295540,-677.94,0.00019597,2]
[360569200,1746892295551,-677.94,0.00019597,2]
[360569201,1746892295560,-677.94,0.00019597,2]
[360569202,1746892295570,-400.0,0.00019597,2]
[360569203,1746892295581,-1153.66,0.00019597,2]
[360569204,1746892295591,-1153.66,0.00019597,2]
[360569205,1746892295600,-835.15,0.00019597,2]
[360569206,1746892295610,-220.90070061,0.00019597,2]
[360569207,1746892295619,-400.0,0.00019597,2]
[360569208,1746892295629,-400.0,0.00019597,2]
[360569209,1746892295639,-400.0,0.00019597,2]
[360569210,1746892295648,-400.0,0.00019597,2]
[360569211,1746892295657,-400.0,0.00019597,2]
[360569212,1746892295667,-441.9,0.00019597,2]
[360569213,1746892295677,-924.57,0.00019597,2]
[360569214,1746892295686,-1666.15,0.00019597,2]
[360569215,1746892295696,-564.16,0.00019597,2]
[360569216,1746892295706,-564.16,0.00019597,2]
[360569217,1746892295716,-564.16,0.00019597,2]
[360569218,1746892295726,-400.0,0.00019597,2]
[360569219,1746892295736,-564.16,0.00019597,2]
[360569220,1746892295746,-564.16,0.00019597,2]
[360569221,1746892295755,-754.95,0.00019597,2]
[360569222,1746892295765,-754.95,0.00019597,2]
[360569223,1746892295775,-754.95,0.00019597,2]
[360569224,1746892295785,-754.95,0.00019597,2]
[360569225,1746892295795,-754.95,0.00019597,2]
[360569226,1746892295805,-1231.0,0.00019597,2]
[360569227,1746892295815,-819.43,0.00019597,2]
[360569228,1746892295824,-300.0,0.00019597,2]
[360569229,1746892295834,-400.0,0.00019598,2]
[360569230,1746892295844,-604.15,0.00019598,2]
[360569231,1746892295853,-400.0,0.00019598,2]
[360569232,1746892295863,-400.0,0.00019598,2]
[360569233,1746892295873,-410.20175093,0.00019598,2]
[360569234,1746892295883,-400.0,0.00019598,2]
[360569235,1746892295892,-400.0,0.00019598,2]
[360569236,1746892295902,-400.0,0.00019598,2]
[360569237,1746892295911,-69.87619835,0.00019598,2]
[360569238,1746892295929,-423.50550473,0.00019178,2]
[360569239,1746892295939,-330.12380165,0.00019598,2]
[360569240,1746892295949,-500.0,0.00019598,2]
[360569241,1746892295959,-421.80792447,0.00019598,2]
[360569242,1746892295970,-400.0,0.00019598,2]
[360569243,1746892295979,-400.0,0.00019598,2]
[360569244,1746892295989,-1000.0,0.00019598,2]
[360569245,1746892295999,-400.0,0.00019598,2]
[360569246,1746892296008,-357.54640169,0.00019598,2]
[360569247,1746892296018,-400.0,0.00019598,2]
[360569248,1746892296029,-400.0,0.00019598,2]
[360569249,1746892296039,-400.0,0.00019598,2]
[360569250,1746892296052,-400.0,0.00019598,2]
[360569251,1746892296067,-400.0,0.00019598,2]
[360569252,1746892296078,-400.0,0.00019598,2]
[360569253,1746892296087,-400.0,0.00019598,2]
[360569254,1746892296096,-517.16,0.00019598,2]
[360569255,1746892296107,-400.0,0.00019598,2]
[360569256,1746892296116,-400.0,0.00019598,2]
[360569257,1746892296125,-400.0,0.00019598,2]
[360569258,1746892296137,-412.6,0.00019598,2]
[360569259,1746892296148,-400.0,0.00019598,2]
[360569260,1746892296157,-400.0,0.00019598,2]
[360569261,1746892296166,-337.76037824,0.00019598,2]
[360569262,1746892296176,-400.0,0.00019598,2]
[360569263,1746892296186,-499.0,0.00019598,2]
[360569264,1746892296195,-387.39496785,0.00019598,2]
[360569265,1746892296207,-12.60503215,0.00019598,2]
[360569266,1746892296216,-400.0,0.00019598,2]
[360569267,1746892296226,-540.47522478,0.00019598,2]
[360569268,1746892296235,-170.97525307,0.00019598,2]
[360569269,1746892296284,-400.0,0.00019178,2]
[360569270,1746892296293,-400.0,0.00019178,2]
[360569271,1746892296304,-400.0,0.00019178,2]
[360569272,1746892296313,-400.0,0.00019178,2]
[360569273,1746892296322,-470.77770204,0.00019178,2]
[360569274,1746892296332,-233.91572313,0.00019598,2]
[360569275,1746892296342,-400.0,0.00019598,2]
[360569276,1746892296351,-482.92,0.00019598,2]
[360569277,1746892296361,-400.0,0.00019598,2]
[360569278,1746892296371,-596.56,0.00019598,2]
[360569279,1746892296380,-423.21934137,0.00019598,2]
[360569280,1746892296389,-400.0,0.00019598,2]
[360569281,1746892296399,-400.0,0.00019598,2]
[360569282,1746892296408,-400.0,0.00019598,2]
[360569283,1746892296418,-253.83119699,0.00019598,2]
[360569284,1746892296427,-400.0,0.00019598,2]
[360569285,1746892296436,-400.0,0.00019598,2]
[360569286,1746892296446,-400.0,0.00019598,2]
[360569287,1746892296456,-400.0,0.00019598,2]
[360569288,1746892296465,-84.83973647,0.00019598,2]
[360569289,1746892296519,-315.16026353,0.00019598,2]
[360569290,1746892296529,-445.56,0.00019598,2]
[360569291,1746892296539,-882.53,0.00019598,2]
[360569292,1746892296549,-400.0,0.00019598,2]
[360569293,1746892296558,-470.96,0.00019598,2]
[360569294,1746892296567,-151.0,0.00019598,2]
[360569295,1746892296577,-151.0,0.00019598,2]
[360569296,1746892296586,-545.54,0.00019598,2]
[360569297,1746892296595,-151.0,0.00019598,2]
[360569298,1746892296604,-400.0,0.00019598,2]
[360569299,1746892296613,-400.0,0.00019598,2]
[360569300,1746892296622,-400.0,0.00019598,2]
[360569301,1746892296632,-400.0,0.00019598,2]
[360569302,1746892296641,-312.21428517,0.00019598,2]
[360569303,1746892296703,-400.0,0.00019598,2]
[360569304,1746892296712,-666.91,0.00019598,2]
[360569305,1746892296722,-1298.01,0.00019598,2]
[360569306,1746892296731,-400.0,0.00019598,2]
[360569307,1746892296741,-400.0,0.00019598,2]
[360569308,1746892296750,-471.6,0.00019598,2]
[360569309,1746892296759,-608.25,0.00019598,2]
[360569310,1746892296769,-441.03,0.00019598,2]
[360569311,1746892296778,-432.15,0.00019598,2]
[360569312,1746892296788,-400.0,0.00019598,2]
[360569313,1746892296799,-400.0,0.00019598,2]
[360569314,1746892296808,-400.0,0.00019598,2]
[360569315,1746892296818,-400.0,0.00019598,2]
[360569316,1746892296827,-307.36869399,0.00019598,2]
[360569317,1746892296836,-510.25,0.00019598,2]
[360569318,1746892296845,-641.72,0.00019598,2]
[360569319,1746892296855,-400.0,0.00019598,2]
[360569320,1746892296864,-400.0,0.00019598,2]
[360569321,1746892296873,-509.11,0.00019598,2]
[360569322,1746892296882,-323.28236739,0.00019598,2]
[360569323,1746892296891,-575.21,0.00019598,2]
[360569324,1746892296900,-481.36,0.00019598,2]
[360569325,1746892296909,-151.0,0.00019598,2]
[360569326,1746892296918,-482.73,0.00019598,2]
[360569327,1746892296927,-302.027633,0.00019598,2]
[360569328,1746892296936,-467.42,0.00019598,2]
[360569329,1746892296945,-400.0,0.00019598,2]
[360569330,1746892296954,-302.027633,0.00019598,2]
[360569331,1746892296963,-571.6,0.00019598,2]
[360569332,1746892296973,-697.14,0.00019598,2]
[360569333,1746892296981,-444.63695609,0.00019598,2]
[360569334,1746892296990,-475.8,0.00019598,2]
[360569335,1746892296999,-400.0,0.00019598,2]
[360569336,1746892297008,-400.0,0.00019598,2]
[360569337,1746892297017,-400.0,0.00019598,2]
[360569338,1746892297027,-525.94,0.00019598,2]
[360569339,1746892297036,-151.0,0.00019598,2]
[360569340,1746892297045,-400.0,0.00019598,2]
[360569341,1746892297057,-400.0,0.00019598,2]
[360569342,1746892297069,-540.0,0.00019598,2]
[360569343,1746892297078,-400.0,0.00019598,2]
[360569344,1746892297087,-400.0,0.00019598,2]
[360569345,1746892297097,-400.0,0.00019598,2]
[360569346,1746892297106,-631.05,0.00019598,2]
[360569347,1746892297115,-400.0,0.00019598,2]
[360569348,1746892297125,-400.0,0.00019598,2]
[360569349,1746892297135,-740.81,0.00019598,2]
[360569350,1746892297144,-626.28,0.00019598,2]
[360569351,1746892297154,-401.37,0.00019598,2]
[360569352,1746892297164,-277.647893,0.00019598,2]
[360569353,1746892297173,-151.0,0.00019598,2]
[360569354,1746892297182,-575.03,0.00019598,2]
[360569355,1746892297191,-400.0,0.00019598,2]
[360569356,1746892297200,-400.0,0.00019598,2]
[360569357,1746892297209,-400.0,0.00019598,2]
[360569358,1746892297219,-400.0,0.00019598,2]
[360569359,1746892297228,-400.0,0.00019598,2]
[360569360,1746892297237,-603.59,0.00019598,2]
[360569361,1746892297246,-497.86,0.00019598,2]
[360569362,1746892297255,-400.0,0.00019598,2]
[360569363,1746892297264,-588.13,0.00019598,2]
[360569364,1746892297274,-400.0,0.00019598,2]
[360569365,1746892297283,-534.94,0.00019598,2]
[360569366,1746892297294,-400.0,0.00019598,2]
[360569367,1746892297305,-613.64,0.00019598,2]
[360569368,1746892297314,-400.0,0.00019598,2]
[360569369,1746892297323,-450.0,0.00019598,2]
[360569370,1746892297332,-400.0,0.00019598,2]
[360569371,1746892297341,-42.18157743,0.00019598,2]
[360569372,1746892297355,-357.81842257,0.00019598,2]
[360569373,1746892297364,-400.0,0.00019598,2]
[360569374,1746892297374,-834.79,0.00019598,2]
[360569375,1746892297383,-400.0,0.00019598,2]
[360569376,1746892297392,-151.0,0.00019598,2]
[360569377,1746892297401,-400.0,0.00019598,2]
[360569378,1746892297411,-1647.94,0.00019598,2]
[360569379,1746892297422,-400.0,0.00019598,2]
[360569380,1746892297431,-644.71,0.00019598,2]
[360569381,1746892297440,-1500.56,0.00019598,2]
[360569382,1746892297450,-400.0,0.00019598,2]
[360569383,1746892297459,-52.31518097,0.00019598,2]
[360569384,1746892297471,-347.68481903,0.00019598,2]
[360569385,1746892297481,-1598.31,0.00019598,2]
[360569386,1746892297490,-400.0,0.00019598,2]
[360569387,1746892297499,-646.15,0.00019598,2]
[360569388,1746892297508,-400.0,0.00019598,2]
[360569389,1746892297517,-530.90751235,0.00019598,2]
[360569390,1746892297527,-400.0,0.00019598,2]
[360569391,1746892297535,-400.0,0.00019598,2]
[360569392,1746892297545,-436.94766862,0.00019598,2]
[360569393,1746892297557,-405.12233138,0.00019598,2]
[360569394,1746892297566,-400.0,0.00019598,2]
[360569395,1746892297575,-400.0,0.00019598,2]
[360569396,1746892297586,-636.83,0.00019598,2]
[360569397,1746892297596,-997.01,0.00019598,2]
[360569398,1746892297607,-400.0,0.00019598,2]
[360569399,1746892297617,-400.0,0.00019598,2]
[360569400,1746892297628,-405.7,0.00019598,2]
[360569401,1746892297639,-346.16374378,0.00019598,2]
[360569402,1746892297648,-583.53,0.00019598,2]
[360569403,1746892297659,-400.0,0.00019598,2]
[360569404,1746892297668,-400.0,0.00019598,2]
[360569405,1746892297677,-400.0,0.00019598,2]
[360569406,1746892297688,-400.0,0.00019598,2]
[360569407,1746892297697,-441.48,0.00019598,2]
[360569408,1746892297707,-400.0,0.00019598,2]
[360569409,1746892297716,-400.0,0.00019598,2]
[360569410,1746892297726,-948.97,0.00019598,2]
[360569411,1746892297735,-400.0,0.00019598,2]
[360569412,1746892297745,-500.0,0.00019598,2]
[360569413,1746892297755,-400.0,0.00019598,2]
[360569414,1746892297764,-3208.863391,0.00019598,2]
[360569415,1746892297773,-400.0,0.00019598,2]
[360569416,1746892297783,-400.0,0.00019598,2]
[360569417,1746892297793,-3208.863391,0.00019598,2]
[360569418,1746892297803,-400.0,0.00019598,2]
[360569419,1746892297813,-400.0,0.00019598,2]
[360569420,1746892297823,-400.0,0.00019598,2]
[360569421,1746892297833,-151.0,0.00019598,2]
[360569422,1746892297842,-605.16,0.00019598,2]
[360569423,1746892297852,-425.29783547,0.00019598,2]
[360569424,1746892297861,-10000.0,0.00019598,2]
[360569425,1746892297871,-400.0,0.00019598,2]
[360569426,1746892297880,-10000.0,0.00019598,2]
[360569427,1746892297890,-400.0,0.00019598,2]
[360569428,1746892297899,-400.0,0.00019598,2]
[360569429,1746892297909,-739.69,0.00019598,2]
[360569430,1746892297918,-417.66,0.00019598,2]
[360569431,1746892297928,-10000.0,0.00019598,2]
[360569432,1746892297937,-438.72,0.00019598,2]
[360569433,1746892297947,-400.0,0.00019598,2]
[360569434,1746892297957,-400.0,0.00019598,2]
[360569435,1746892297967,-151.0,0.00019598,2]
[360569436,1746892297976,-400.0,0.00019598,2]
[360569437,1746892297985,-400.0,0.00019598,2]
[360569438,1746892297995,-400.0,0.00019598,2]
[360569439,1746892298005,-625.46,0.00019598,2]
[360569440,1746892298014,-400.0,0.00019598,2]
[360569441,1746892298024,-399.85846056,0.00019598,2]
[360569442,1746892298033,-809.99,0.00019598,2]
[360569443,1746892298042,-504.03,0.00019598,2]
[360569444,1746892298052,-400.0,0.00019598,2]
[360569445,1746892298065,-674.51,0.00019598,2]
[360569446,1746892298075,-400.0,0.00019598,2]
[360569447,1746892298084,-400.0,0.00019598,2]
[360569448,1746892298093,-400.0,0.00019598,2]
[360569449,1746892298103,-515.58,0.00019598,2]
[360569450,1746892298113,-151.0,0.00019598,2]
[360569451,1746892298122,-400.0,0.00019598,2]